fUSD/lending_fUSD_20250614
["ID","MTS","AMOUNT","RATE_DAILY","PERIOD"]
[365811994,1749931834916,-500.0,0.00016999,2]
[365811995,1749931834925,-198.35827689,0.00016999,2]
[365811996,1749931834934,-500.0,0.00016999,2]
[365811997,1749931834943,-500.0,0.00016999,2]
[365811998,1749931834951,-500.0,0.00016999,2]
[365811999,1749931834960,-461.67936637,0.00016999,2]
[365812000,1749931834969,-500.0,0.00016999,2]
[365812001,1749931834979,-500.0,0.00016999,2]
[365812002,1749931834987,-592.0,0.00016999,2]
[365812003,1749931834996,-511461.10791125,0.00016999,2]
[365812004,1749931835005,-673306.26763946,0.00017,2]
[365812209,1749931840216,-755.5832384,0.00016851,2]
[365812211,1749931840227,-755.5832384,0.00016863,2]
[365812213,1749931840236,-709.43,0.00016879,2]
[365812215,1749931840246,-709.43,0.00016879,2]
[365812217,1749931840256,-709.43,0.00016879,2]
[365812219,1749931840266,-709.43,0.00016879,2]
[365812221,1749931840275,-3444.23115572,0.000169,2]
[365812223,1749931840285,-216.97321949,0.00016999,2]
[365812225,1749931840294,-500.0,0.00016999,2]
[365812227,1749931840305,-9789.56851533,0.00016999,2]
[365812229,1749931840315,-46826.53922965,0.00017,2]
[365812231,1749931840324,-434005.67445087,0.00017,2]
[365812611,1749931844093,-164.11,0.00016879,2]
[365812613,1749931844103,-709.43,0.00016889,2]
[365812615,1749931844112,-7.73227305,0.0001689,2]
[365812617,1749931844124,-156.37772695,0.0001689,2]
[365812619,1749931844133,-232.97769869,0.00016999,2]
[365812622,1749931844150,-252.47,0.00016999,2]
[365812624,1749931844161,-53.55230131,0.00016999,2]
[365812626,1749931844171,-245.48769869,0.00017,2]
[365812628,1749931844182,-342.98689369,0.00017,2]
[365812631,1749931844196,-1144.75361003,0.00017,2]
[365812823,1749931846070,-755.5832384,0.00016876,2]
[365812825,1749931846080,-178.1442992,0.00017,2]
[365812831,1749931846123,-3609.98740316,0.00017,2]
[365812838,1749931846176,-22647.05742054,0.00017,2]
[365812840,1749931846186,-30017.52139952,0.00017,3]
[365812842,1749931846195,-150.0,0.00017,2]
[365812844,1749931846205,-3770.52030733,0.00017,2]
[365812846,1749931846214,-150.0,0.00017,2]
[365812848,1749931846223,-36377.43966967,0.00017,2]
[365812850,1749931846233,-78330.66082901,0.00017,2]
[365812862,1749931846334,-4525.3307136,0.00017,2]
[365813103,1749931848776,402.99,0.00013699,2]
[365813234,1749931901745,204.0,0.00015171,2]
[365813235,1749931975332,168.0,0.0001534,2]
[365813236,1749931991967,200.0,0.00015171,2]
[365813238,1749932064043,-224.25900324,0.00016041,2]
[365813239,1749932066620,-151.0,0.00016041,2]
[365813240,1749932068758,-161.85310669,0.00016041,2]
[365813241,1749932071759,-128.88789007,0.00016041,2]
[365813242,1749932071782,-330.03567481,0.0001666,2]
[365813243,1749932073326,-184.56958982,0.0001666,2]
[365813244,1749932077636,-211.0,0.0001666,2]
[365813245,1749932079687,-108.02711163,0.0001666,2]
[365813246,1749932079710,-239.09288837,0.0001666,2]
[365813247,1749932080959,-239.09288837,0.0001666,2]
[365813248,1749932102918,-239.09288837,0.0001666,2]
[365813250,1749932145899,-239.09288837,0.0001666,2]
[365813251,1749932187187,-239.09288837,0.00016024,2]
[365813252,1749932189573,-311.09829226,0.00016024,2]
[365813253,1749932191081,-250.0,0.00016024,2]
[365813254,1749932193527,-312.04654143,0.00016024,2]
[365813255,1749932196816,-302.41312232,0.00016024,2]
[365813256,1749932198862,-2.69915562,0.00016024,2]
[365813257,1749932198886,-152.16177789,0.00016375,2]
[365813258,1749932200938,-48.83822211,0.00016375,2]
[365813259,1749932200966,-251.16177789,0.00016413,2]
[365813260,1749932204909,-1.36822211,0.00016413,2]
[365813261,1749932204938,-247.91,0.00016413,2]
[365813262,1749932204960,-115.16931173,0.0001666,2]
[365813263,1749932209440,-226.88,0.0001666,2]
[365813264,1749932232655,-226.88,0.00016413,2]
[365813265,1749932238981,-22.54,0.00016413,2]
[365813266,1749932239008,-140.16354328,0.00016413,2]
[365813267,1749932240699,-105.42645672,0.00016413,2]
[365813268,1749932240724,-70.1249965,0.0001666,2]
[365813269,1749932245529,-254.28,0.00016427,2]
[365813270,1749932245555,-0.72,0.0001666,2]
[365813271,1749932247246,-179.7050035,0.0001666,2]
[365813272,1749932247271,-113.06822203,0.0001666,2]
[365813273,1749932249806,-252.13,0.00016427,2]
[365813274,1749932249832,-46.99511087,0.0001666,2]
[365813275,1749932255196,-153.0163917,0.00016427,2]
[365813276,1749932256317,-95.5636083,0.00016427,2]
[365813277,1749932256343,-94.1166671,0.0001666,2]
[365813278,1749932256369,-8.39648317,0.0001666,2]
[365813279,1749932262074,-172.208853,0.0001666,2]
[365813280,1749932265045,-75.591147,0.0001666,2]
[365813281,1749932265070,-112.40414966,0.0001666,2]
[365813282,1749932270534,-133.64585034,0.0001666,2]
[365813283,1749932270560,-175.56278813,0.0001666,2]
[365813284,1749932273015,-151.0,0.00016016,2]
[365813285,1749932277890,-188.17687768,0.00016016,2]
[365813286,1749932279333,-200.51618697,0.00016016,2]
[365813287,1749932280778,-180.0,0.00016016,2]
[365813288,1749932286565,-280.30693535,0.00016016,2]
[365813289,1749932286591,-17.86381042,0.0001666,2]
[365813290,1749932289182,-59.19340145,0.0001666,2]
[365813291,1749932289207,-190.80659855,0.0001666,2]
[365813292,1749932292905,-200.0,0.00016375,2]
[365813293,1749932292933,-47.45691828,0.0001666,2]
[365813294,1749932292958,-35.30114372,0.0001666,2]
[365813295,1749932294427,-209.70885628,0.0001666,2]
[365813296,1749932294454,-82.50291918,0.0001666,2]
[365813297,1749932300639,-157.83025099,0.0001666,2]
[365813298,1749932302756,-11.81682983,0.0001666,2]
[365813299,1749932302779,-144.52844519,0.0001666,2]
[365813300,1749932305058,-155.25364802,0.0001666,2]
[365813301,1749932312584,156.35,0.0001598,2]
[365813302,1749932325965,-155.25364802,0.0001666,2]
[365813303,1749932333303,-98.94635198,0.0001666,2]
[365813304,1749932333329,-154.82617451,0.0001666,2]
[365813305,1749932335727,-95.78382549,0.0001666,2]
[365813306,1749932335753,-220.65376828,0.0001666,2]
[365813307,1749932337578,-25.05623172,0.0001666,2]
[365813308,1749932337601,-185.94485591,0.0001666,2]
[365813309,1749932341237,-114.05514409,0.0001666,2]
[365813310,1749932341260,-85.94485591,0.0001666,2]
[365813311,1749932343740,-250.13906649,0.0001666,2]
[365813312,1749932365942,-170.30370885,0.0001666,2]
[365813313,1749932393536,-170.30370885,0.00016724,4]
[365813314,1749932397654,-305.35767151,0.00016724,4]
[365813315,1749932400909,-124.33861964,0.00016724,4]
[365813316,1749932400933,-44.3248102,0.00016779,2]
[365813317,1749932406564,-162.371147,0.00016779,2]
[365813318,1749932408395,-201.0,0.00016779,2]
[365813319,1749932413712,-159.99181557,0.00016779,2]
[365813320,1749932416410,-152.27,0.00016778,2]
[365813321,1749932450467,-152.27,0.00016778,2]
[365813322,1749932487623,-152.27,0.00016777,2]
[365813323,1749932493085,-95.49,0.00016777,2]
[365813324,1749932493115,-203.51,0.00016777,2]
[365813325,1749932495901,-51.34,0.00016777,2]
[365813326,1749932495925,-315.18053621,0.00016777,2]
[365813327,1749932496721,-315.18053621,0.00016777,2]
[365813328,1749932521760,-315.18053621,0.00016776,2]
[365813329,1749932548192,-163.18053621,0.00016127,2]
[365813330,1749932566608,-37.81946379,0.00016127,2]
[365813331,1749932566635,-114.18053621,0.00016776,2]
[365813332,1749932569468,-137.56946379,0.00016776,2]
[365813333,1749932569494,-251.4220991,0.00016776,2]
[365813334,1749932647794,150.0,0.00015917,7]
[365813335,1749932653156,-152.27,0.00016127,2]
[365813336,1749932657507,-47.73,0.00016127,2]
[365813337,1749932714554,559.62,0.00015933,2]
[365813350,1749932883598,1015.57,0.00014048,2]
[365813351,1749932884876,-267.45053621,0.00016312,2]
[365813352,1749932891693,201.0,0.00015127,2]
[365813353,1749932891945,201.0,0.00015915,3]
[365813358,1749932899525,-206.6959572,0.00016312,2]
[365813359,1749932913533,-152.27,0.00016312,2]
[365813363,1749932928152,-159.99181557,0.00016312,2]
[365813364,1749932942613,-229.16169102,0.00016312,2]
[365813368,1749932968174,404.43,0.00013699,2]
[365813376,1749933032183,-809.424741,0.0001666,2]
[365813377,1749933032192,-201.0,0.00016702,4]
[365813378,1749933032201,-3.2879009,0.00016776,2]
[365813380,1749933032211,-254.39,0.00016776,2]
[365813383,1749933032221,-252.64,0.00016777,2]
[365813385,1749933032230,-249.57,0.00016777,2]
[365813386,1749933032239,-245.72,0.00016777,2]
[365813387,1749933032249,-123.2044581,0.00016778,2]
[365813388,1749933032294,-176.7955419,0.00016778,2]
[365813389,1749933032304,-823.2044581,0.00016778,2]
[365813390,1749933032315,-376.7955419,0.00016778,2]
[365813391,1749933032325,-249.25,0.00016779,2]
[365813392,1749933032335,-252.77,0.00016779,2]
[365813393,1749933032344,-250.47,0.00016779,2]
[365813394,1749933032353,-254.79,0.00016779,2]
[365813395,1749933032363,-151.0,0.00016779,2]
[365813396,1749933032373,-151.0,0.00016779,2]
[365813397,1749933032383,-1957.856,0.00016779,2]
[365813398,1749933032393,-151.0,0.00016779,2]
[365813399,1749933032403,-500.0,0.00016779,2]
[365813400,1749933032412,-500.0,0.00016779,2]
[365813401,1749933032422,-500.0,0.00016779,2]
[365813402,1749933032432,-151.0,0.00016779,2]
[365813403,1749933032442,-500.0,0.00016779,2]
[365813404,1749933032453,-500.0,0.00016779,2]
[365813406,1749933032463,-500.0,0.00016779,2]
[365813408,1749933032472,-500.0,0.00016779,2]
[365813410,1749933032482,-500.0,0.00016779,2]
[365813412,1749933032492,-500.0,0.00016779,2]
[365813413,1749933032501,-375.97126773,0.00016779,2]
[365813414,1749933032512,-200.0,0.00016779,2]
[365813416,1749933032522,-207.4,0.00016779,2]
[365813418,1749933032531,-1000.0,0.00016779,2]
[365813420,1749933032541,-1000.0,0.00016779,2]
[365813422,1749933032550,-1000.0,0.00016779,2]
[365813424,1749933032560,-995.03527215,0.00016779,2]
[365813426,1749933032570,-151.0,0.00016779,2]
[365813428,1749933032579,-151.0,0.00016779,2]
[365813430,1749933032589,-151.0,0.00016779,2]
[365813432,1749933032598,-151.0,0.00016779,2]
[365813434,1749933032608,-151.0,0.00016779,2]
[365813436,1749933032618,-151.0,0.00016779,2]
[365813438,1749933032627,-151.0,0.00016779,2]
[365813440,1749933032636,-151.0,0.00016779,2]
[365813442,1749933032646,-151.0,0.00016779,2]
[365813444,1749933032655,-151.0,0.00016779,2]
[365813446,1749933032665,-151.0,0.00016779,2]
[365813448,1749933032674,-151.0,0.00016779,2]
[365813450,1749933032684,-188.0,0.00016779,2]
[365813452,1749933032693,-300.0,0.00016779,2]
[365813454,1749933032702,-3854.5424,0.00016789,2]
[365813456,1749933032711,-18635.33158221,0.00016789,2]
[365813461,1749933032749,-500.0,0.00016789,2]
[365813463,1749933032762,-14875.05731779,0.00016789,2]
[365813465,1749933032771,-1000.0,0.00016789,2]
[365813467,1749933032780,-1462.60889923,0.00016834,2]
[365813469,1749933032789,-150.0,0.00016861,2]
[365813471,1749933032799,-1000.0,0.00016863,2]
[365813473,1749933032809,-844.58112021,0.00016882,2]
[365813475,1749933032820,-1173.903,0.00016899,2]
[365813477,1749933032832,-813.0722,0.000169,2]
[365813479,1749933032842,-179.957037,0.000169,2]
[365813481,1749933032851,-157.898244,0.000169,2]
[365813483,1749933032861,-163.378589,0.000169,2]
[365813485,1749933032870,-163.378589,0.000169,2]
[365813487,1749933032879,-359.26558048,0.000169,2]
[365813489,1749933032888,-3630.90067,0.000169,2]
[365813491,1749933032899,-3630.90067,0.000169,2]
[365813493,1749933032908,-151.0,0.000169,2]
[365813495,1749933032917,-151.0,0.000169,2]
[365813497,1749933032927,-172.18415127,0.000169,2]
[365813499,1749933032936,-151.0,0.000169,2]
[365813501,1749933032945,-151.0,0.000169,2]
[365813503,1749933032955,-354.7,0.000169,2]
[365813505,1749933032964,-151.0,0.000169,2]
[365813507,1749933032973,-151.0,0.000169,2]
[365813509,1749933032982,-151.0,0.000169,2]
[365813511,1749933032991,-14399.17593783,0.000169,2]
[365814023,1749933038120,-442.43259755,0.0001666,2]
[365814030,1749933038178,-320.88,0.0001638,2]
[365814033,1749933038190,-143.12,0.0001638,2]
[365814035,1749933038199,-21.56740245,0.0001666,2]
[365814037,1749933038208,-380.6578273,0.000169,2]
[365814039,1749933038219,-1673.00546508,0.000169,2]
[365814042,1749933038229,-464.59453492,0.000169,2]
[365814044,1749933038240,-1347.49999999,0.000169,2]
[365814056,1749933038346,-2326.36514861,0.000169,2]
[365814095,1749933038796,464.0,0.0001582,2]
[365814127,1749933039094,464.0,0.0001554,2]
[365814158,1749933039364,-201.0,0.000161,2]
[365814162,1749933039396,464.0,0.0001526,2]
[365814302,1749933041153,464.0,0.0001498,2]
[365814303,1749933041183,464.0,0.000147,2]
[365814324,1749933041844,-263.0,0.000161,2]
[365814326,1749933041854,-833.63237626,0.00016773,2]
[365814328,1749933041863,-301.82544509,0.000169,2]
[365814331,1749933041874,-813.072159,0.000169,2]
[365814333,1749933041885,-279.686,0.000169,2]
[365814335,1749933041896,-851.63085807,0.000169,2]
[365814477,1749933043209,-352.407,0.000169,2]
[365814492,1749933043319,-6306.76821689,0.000169,2]
[365814494,1749933043329,-7710.07994215,0.000169,2]
[365814496,1749933043339,-4124.2729,0.000169,2]
[365814498,1749933043348,-351.61297848,0.000169,2]
[365814500,1749933043358,-464.0,0.0001693,2]
[365814502,1749933043367,-168.0,0.00016948,2]
[365814504,1749933043378,-372.18641,0.00016958,2]
[365814506,1749933043390,-372.18641,0.00016958,2]
[365814508,1749933043400,-500.0,0.00016973,2]
[365814510,1749933043412,-500.0,0.00016973,2]
[365814511,1749933043422,-500.0,0.00016973,2]
[365814513,1749933043433,-500.0,0.00016973,2]
[365814515,1749933043445,-500.0,0.00016973,2]
[365814517,1749933043457,-500.0,0.00016973,2]
[365814519,1749933043468,-502.09719273,0.00016973,2]
[365814521,1749933043480,-500.0,0.00016973,2]
[365814523,1749933043491,-500.0,0.00016973,2]
[365814525,1749933043501,-554.43694058,0.00016973,2]
[365814527,1749933043511,-500.0,0.00016973,2]
[365814529,1749933043532,-500.0,0.00016973,2]
[365814531,1749933043542,-163.378589,0.00016973,2]
[365814533,1749933043553,-163.378589,0.00016973,2]
[365814535,1749933043563,-150.0,0.00016979,2]
[365814537,1749933043573,-3630.90067,0.0001699,2]
[365814539,1749933043584,-3630.90067,0.0001699,2]
[365814541,1749933043594,-151.0,0.0001699,2]
[365814543,1749933043603,-151.0,0.0001699,2]
[365814545,1749933043612,-151.0,0.0001699,2]
[365814547,1749933043622,-151.0,0.0001699,2]
[365814549,1749933043632,-151.0,0.0001699,2]
[365814551,1749933043641,-151.0,0.0001699,2]
[365814553,1749933043651,-151.0,0.0001699,2]
[365814555,1749933043661,-3321.2479934,0.00016991,2]
[365814557,1749933043671,-3940.8269429,0.00016991,2]
[365814559,1749933043681,-2139.5557363,0.00016991,2]
[365814561,1749933043690,-73416.54218592,0.00016991,2]
[365814563,1749933043702,-690.75270973,0.00016991,2]
[365814565,1749933043713,-257.095104,0.00016991,2]
[365814600,1749933044059,-874.575,0.00016991,2]
[365814820,1749933046316,-2136.0,0.00016991,2]
[365814827,1749933046370,-3302.70810483,0.00016991,2]
[365814834,1749933046428,-1773.43832682,0.00016991,2]
[365814841,1749933046486,-30017.6727353,0.00016991,2]
[365814843,1749933046496,-10906.2228477,0.00016991,2]
[365814845,1749933046505,-163.378589,0.00016999,2]
[365814847,1749933046514,-163.378589,0.00016999,2]
[365814849,1749933046524,-3630.90067,0.00016999,2]
[365814851,1749933046534,-3630.90067,0.00016999,2]
[365814853,1749933046543,-151.0,0.00016999,2]
[365814855,1749933046553,-151.0,0.00016999,2]
[365814857,1749933046562,-151.0,0.00016999,2]
[365814859,1749933046572,-151.0,0.00016999,2]
[365814861,1749933046582,-300.0,0.00016999,2]
[365814863,1749933046591,-150.0,0.00016999,2]
[365814865,1749933046600,-198.69561,0.00016999,2]
[365814867,1749933046610,-150.0,0.00016999,2]
[365814868,1749933046619,-150.0,0.00016999,2]
[365814869,1749933046628,-150.0,0.00016999,2]
[365814870,1749933046637,-150.0,0.00016999,2]
[365814872,1749933046646,-151.0,0.00016999,2]
[365814874,1749933046656,-151.0,0.00016999,2]
[365814876,1749933046665,-174.81,0.00016999,2]
[365814878,1749933046675,-151.0,0.00016999,2]
[365814880,1749933046684,-300.0,0.00016999,2]
[365814882,1749933046693,-500.0,0.00016999,2]
[365814884,1749933046704,-500.0,0.00016999,2]
[365814886,1749933046714,-605.0,0.00016999,2]
[365814888,1749933046723,-150.0,0.00016999,2]
[365814890,1749933046732,-415.4016592,0.00016999,2]
[365814892,1749933046744,-84.5983408,0.00016999,2]
[365814894,1749933046753,-300.0,0.00016999,2]
[365814896,1749933046762,-150.0,0.00016999,2]
[365814898,1749933046773,-500.0,0.00016999,2]
[365814900,1749933046782,-500.0,0.00016999,2]
[365814902,1749933046792,-149.52519127,0.00016999,2]
[365814904,1749933046803,-350.47480873,0.00016999,2]
[365814906,1749933046813,-500.0,0.00016999,2]
[365814908,1749933046822,-150.0,0.00016999,2]
[365814910,1749933046834,-500.0,0.00016999,2]
[365814912,1749933046843,-300.0,0.00016999,2]
[365814914,1749933046852,-150.0,0.00016999,2]
[365814916,1749933046861,-500.0,0.00016999,2]
[365814918,1749933046870,-500.0,0.00016999,2]
[365814920,1749933046880,-500.0,0.00016999,2]
[365814922,1749933046889,-277.27379438,0.00016999,2]
[365814924,1749933046898,-261.65523815,0.00016999,2]
[365814926,1749933046908,-250.0,0.00016999,2]
[365814928,1749933046917,-566.52822224,0.00016999,2]
[365814930,1749933046927,-500.0,0.00016999,2]
[365814932,1749933046938,-500.0,0.00016999,2]
[365814934,1749933046947,-277.19555568,0.00016999,2]
[365814936,1749933046957,-500.0,0.00016999,2]
[365814938,1749933046966,-550.44010156,0.00016999,2]
[365814940,1749933046976,-500.0,0.00016999,2]
[365814942,1749933046985,-500.0,0.00016999,2]
[365814944,1749933046995,-500.0,0.00016999,2]
[365814946,1749933047005,-500.0,0.00016999,2]
[365814948,1749933047017,-222.8314144,0.00016999,2]
[365814950,1749933047026,-590.0,0.00017,2]
[365814952,1749933047035,-558.0,0.00017,2]
[365814954,1749933047045,-927.0,0.00017,2]
[365814956,1749933047054,-1252.628,0.00017,2]
[365814958,1749933047063,-1276.0,0.00017,2]
[365814960,1749933047073,-1673.0,0.00017,2]
[365814962,1749933047083,-7066.0,0.00017,2]
[365814964,1749933047092,-4087.0,0.00017,2]
[365814967,1749933047101,-155.0,0.00017,2]
[365814968,1749933047110,-884.0,0.00017,2]
[365814970,1749933047119,-853.0,0.00017,2]
[365814972,1749933047129,-537.0,0.00017,2]
[365814974,1749933047138,-346711.32663901,0.00017,2]
[365815592,1749933072150,200.0,0.00015127,2]
[365815593,1749933132704,204.0,0.00015127,2]
[365815594,1749933140083,-233.05946379,0.00016035,2]
[365815595,1749933155200,-203.51,0.00016035,2]
[365815596,1749933169188,-229.43053621,0.00016035,2]
[365815597,1749933271357,784.57,0.00015893,2]
[365815598,1749933272755,6531.77,0.00015893,2]
[365815599,1749933275801,-203.61,0.0001609,2]
[365815600,1749933288543,-315.18053621,0.0001609,2]
[365815601,1749933302610,-294.64232849,0.0001609,2]
[365815602,1749933319203,-186.5671353,0.0001609,2]
[365815603,1749933394131,7415.37,0.00015891,2]
[365815604,1749933399734,289.59,0.00015887,2]
[365815605,1749933495592,303.98771464,0.00025,120]
[365815606,1749933539158,5000.0,0.00024657,120]
[365815607,1749933562513,250.0,0.00015876,2]
[365815608,1749933611739,201.0,0.00015489,2]
[365815609,1749933614398,-185.94485591,0.00016313,3]
[365815610,1749933618048,-15.05514409,0.00016313,3]
[365815612,1749933731841,200.0,0.00015489,2]
[365815613,1749933734695,679.83,0.00015861,2]
[365815614,1749933793480,250.53,0.00015854,2]
[365815615,1749933793681,250.53,0.00015858,2]
[365815616,1749933793881,250.53,0.00015862,2]
[365815617,1749933794084,250.53,0.00015867,2]
[365815618,1749933794506,250.53,0.00015871,2]
[365815619,1749933794723,250.53,0.00015875,2]
[365815620,1749933795258,250.53,0.00015879,2]
[365815621,1749933795458,250.53,0.00015883,2]
[365815622,1749933795660,250.53,0.00015887,2]
[365815623,1749933795853,250.53,0.00015892,2]
[365815624,1749933796517,250.53,0.00015896,2]
[365815625,1749933797320,250.53,0.000159,2]
[365815626,1749933797898,235.0839224,0.00015904,2]
[365815627,1749933797922,15.4460776,0.00015904,2]
[365815628,1749933797990,250.53,0.00015908,2]
[365815629,1749933798203,250.53,0.00015912,2]
[365815630,1749933798413,250.53,0.00015917,2]
[365815631,1749933798640,250.53,0.00015921,2]
[365815632,1749933798883,250.53,0.00015925,2]
[365815633,1749933799099,250.53,0.00015929,2]
[365815634,1749933799298,250.53,0.00015933,2]
[365815646,1749934059935,998.72,0.00013928,2]
[365815647,1749934061232,-201.0,0.00016138,2]
[365815648,1749934061255,-55.24856476,0.00016192,2]
[365815649,1749934068007,-222.66238867,0.00016192,2]
[365815651,1749934113148,404.72,0.00013699,2]
[365815656,1749934231414,-200.0,0.00016138,2]
[365815658,1749934231424,-720.80904657,0.00016192,2]
[365815660,1749934231433,-280.77,0.0001637,2]
[365815661,1749934231443,-200.0,0.000164,5]
[365815662,1749934231452,-600.0,0.00016413,4]
[365815663,1749934231461,-300.0,0.00016425,2]
[365815664,1749934231471,-152.0,0.00016429,3]
[365815665,1749934231480,-300.0,0.0001645,2]
[365815666,1749934231489,-1200.0,0.00016499,2]
[365815667,1749934231498,-300.0,0.00016499,2]
[365815668,1749934231507,-500.0,0.000165,6]
[365815669,1749934231516,-44.92095343,0.000165,2]
[365815670,1749934231529,-309.77904657,0.000165,2]
[365815671,1749934231538,-695.94163046,0.000165,2]
[365815672,1749934231550,-220.99836954,0.000165,2]
[365815673,1749934231559,-354.7,0.000165,2]
[365815674,1749934231569,-354.7,0.000165,2]
[365815675,1749934231578,-354.7,0.000165,2]
[365815676,1749934231587,-53.06246688,0.000165,2]
[365815677,1749934231599,-301.63753312,0.000165,2]
[365815678,1749934231608,-300.0,0.00016522,2]
[365815679,1749934231618,-151.0,0.0001659,2]
[365815680,1749934231628,-1957.856,0.0001659,2]
[365815681,1749934231638,-421.51973429,0.0001659,2]
[365815682,1749934231650,-78.48026571,0.0001659,2]
[365815683,1749934231659,-647.70940473,0.0001659,2]
[365815684,1749934231690,-352.29059527,0.0001659,2]
[365815685,1749934231700,-367.97428001,0.0001659,2]
[365815687,1749934231709,-207.4,0.0001659,2]
[365815689,1749934231719,-77.84880683,0.00016599,2]
[365815692,1749934231730,-222.15119317,0.00016599,2]
[365815694,1749934231740,-354.7,0.000166,2]
[365815696,1749934231749,-3.68972239,0.000166,2]
[365815697,1749934231761,-351.01027761,0.000166,2]
[365815699,1749934231770,-354.7,0.000166,2]
[365815700,1749934231781,-354.7,0.000166,2]
[365815701,1749934231791,-354.7,0.000166,2]
[365815702,1749934231800,-709.3,0.000166,2]
[365815703,1749934231809,-435.18972241,0.000166,2]
[365815704,1749934231821,-274.08027759,0.000166,2]
[365815705,1749934231830,-272.51365678,0.000166,2]
[365815706,1749934231842,-82.18634322,0.000166,2]
[365815707,1749934231852,-556.97607906,0.000166,2]
[365815708,1749934231863,-152.23392094,0.000166,2]
[365815710,1749934231873,-354.7,0.000166,2]
[365815711,1749934231882,-40.32461608,0.000166,2]
[365815712,1749934231895,-314.37538392,0.000166,2]
[365815713,1749934231905,-226.1559176,0.000166,2]
[365815714,1749934231916,-128.5440824,0.000166,2]
[365815715,1749934231927,-797.31,0.000166,2]
[365815716,1749934231936,-709.4,0.000166,2]
[365815717,1749934231946,-354.7,0.000166,2]
[365815718,1749934231955,-797.31,0.000166,2]
[365815720,1749934231965,-354.7,0.000166,2]
[365815722,1749934231974,-461.5,0.000166,2]
[365815724,1749934231983,-668.99,0.000166,2]
[365815725,1749934231993,-797.31,0.000166,2]
[365815726,1749934232002,-461.5,0.000166,2]
[365815727,1749934232012,-354.7,0.000166,2]
[365815728,1749934232021,-800.0,0.000166,6]
[365815729,1749934232032,-2030.296672,0.00016645,2]
[365815730,1749934232041,-497.30348925,0.00016649,2]
[365815731,1749934232050,-833.63237626,0.00016655,2]
[365815732,1749934232060,-925.891152,0.0001666,2]
[365815733,1749934232069,-1168.0,0.00016663,2]
[365815734,1749934232078,-1060.0,0.00016663,2]
[365815735,1749934232087,-227.0,0.00016679,2]
[365815736,1749934232097,-286.0,0.00016699,2]
[365815737,1749934232106,-354.7,0.000167,2]
[365815738,1749934232115,-354.7,0.000167,2]
[365815739,1749934232126,-354.7,0.000167,2]
[365815740,1749934232136,-354.7,0.000167,2]
[365815741,1749934232145,-354.7,0.000167,2]
[365815742,1749934232155,-354.7,0.000167,2]
[365815743,1749934232164,-709.3,0.000167,2]
[365815744,1749934232173,-354.7,0.000167,2]
[365815745,1749934232183,-461.5,0.000167,2]
[365815746,1749934232192,-354.7,0.000167,2]
[365815747,1749934232201,-461.5,0.000167,2]
[365815748,1749934232211,-353.94,0.000167,2]
[365815749,1749934232221,-1100.0,0.000167,6]
[365815750,1749934232231,-2105.41764886,0.000167,2]
[365815751,1749934232241,-326.84,0.0001674,2]
[365815752,1749934232251,-809.0,0.00016746,2]
[365815753,1749934232260,-1342.0,0.00016746,2]
[365815754,1749934232269,-567.68777277,0.00016755,2]